Cogmind - Beta 13 @@@ ROGUE MODE // 2024.04.06 @ 21:46:59 Player: Fun Maker Result: Destroyed by Y-45 Defender with Beam Rifle Performance ------------- Evolutions (1) 500 Regions Visited (2) 400 Robots Destroyed (56) 280 Value Destroyed (1185) 1185 Prototype IDs (3) 60 Alien Tech Used (0) 0 Bonus (68) 68 TOTAL SCORE: 2493 Bonus ------- High Alert Combat Kills 68 Cogmind --------- Core Integrity 0/400 Matter 5/300 Energy 280/280 System Corruption 4% Temperature Cool (9) Movement Core (850) Ox16 Location -9/Materials Parts ------- > --- POWER (1) -------- Heavy Ion Engine > --- PROPULSION (2) --- (None) > --- UTILITY (4) ------ High-capacity Storage Unit Visual Processing Unit Signal Interpreter > --- WEAPON (2) ------- Katana > --- INVENTORY (20) --- Improved Ion Engine Improved Ion Engine Improved Ion Engine Aluminum Leg Large Storage Unit Large Storage Unit Hardened Medium Armor Plating Hardened Medium Armor Plating Hardened Medium Armor Plating Hardlight Generator Hardlight Generator Hardlight Generator Hardlight Generator Field Recycling Unit (35) Grenade Launcher Peak State ------------ > --- POWER ------------ Heavy Ion Engine > --- PROPULSION ------- Aluminum Leg Improved Aluminum Leg > --- UTILITY ---------- High-capacity Storage Unit Visual Processing Unit Signal Interpreter Hardened Medium Armor Plating > --- WEAPON ----------- EM Shotgun Grenade Launcher > --- INVENTORY -------- Improved Ion Engine Improved Ion Engine Improved Ion Engine Large Storage Unit Large Storage Unit Hardened Medium Armor Plating Hardened Medium Armor Plating Hardened Medium Armor Plating Hardlight Generator Hardlight Generator Hardlight Generator Field Recycling Unit Katana [Rating: 19] Favorites ----------- Power Heavy Ion Engine Engine Heavy Ion Engine Propulsion Aluminum Leg Treads Light Treads Leg Aluminum Leg Flight Unit Flight Unit Utility Signal Interpreter Device Shield Generator Storage Large Storage Unit Processor Signal Interpreter Protection Light Armor Plating Weapon Grenade Launcher Energy Gun EM Shotgun Ballistic Gun Assault Rifle Launcher Grenade Launcher Slashing Weapon Katana Special Melee Weapon Datajack Build | -11 -10 -9 ------- Run | Yrd Mat Mat Slots Evolved 2 | . . 2 Power . | . . . Propulsion . | . . . Utility 2 | . . 2 Weapon . | . . . Parts Attached 77 | 7 19 51 Power 9 | 2 2 5 Engine 9 | 2 2 5 Core . | . . . Reactor . | . . . Propulsion 14 | 2 5 7 Treads 3 | . . 3 Leg 9 | 2 3 4 Wheel . | . . . Hover . | . . . Flight 2 | . 2 . Utility 21 | 1 4 16 Device 12 | 1 1 10 Storage 3 | . 2 1 Processor 2 | . . 2 Hackware . | . . . Protection 4 | . 1 3 Artifact . | . . . Weapon 33 | 2 8 23 Energy Gun 3 | . . 3 Energy Cannon . | . . . Ballistic Gun 12 | 2 4 6 Ballistic Cannon . | . . . Launcher 13 | . 3 10 Special Weapon . | . . . Impact Weapon . | . . . Slashing Weapon 3 | . . 3 Piercing Weapon . | . . . Special Melee Weapon 2 | . 1 1 Unidentified Prototypes 3 | . . 3 Parts Lost 18 | . 5 13 Power 3 | . 2 1 Propulsion 6 | . 2 4 Utility 4 | . . 4 Weapon 5 | . 1 4 Highest Loss Streak 6 | . 5 6 To Critical Strikes 1 | . . 1 Average Slot Usage (%) 97 | . 97 97 Engine 11 | . 13 10 Treads 8 | . . 12 Leg 14 | . 24 8 Device 8 | . 4 11 Storage 11 | . 13 11 Processor 8 | . . 13 Protection 8 | . 9 8 Energy Gun 1 | . . 2 Ballistic Gun 11 | . 16 8 Launcher 10 | . 10 10 Naked Turns . | . . . Heaviest Build 68 | 8 31 68 Greatest Support 40 | 20 20 40 Greatest Overweight (x) 19 | . 3 19 Average Overweight (x) . | . . 1 Largest Inventory Capacity 20 | 5 15 20 Average Capacity 14 | 5 11 17 Most Carried 15 | 4 14 15 Average Carried 10 | . 7 12 Final Capacity 20 | 5 15 20 Final Carried 15 | 2 14 15 Class Distribution -------------------- 97% | Mutant Dominant Class ---------------- Mutant | -10/Materials Mutant | -9/Materials Resources | -11 -10 -9 ----------- Run | Yrd Mat Mat Matter Collected 1027 | 278 296 453 Remotely . | . . . Salvage Created 1183 | 43 459 681 Parts 104 | 4 40 60 Haulers Intercepted 1 | . . 1 Recyclers Shooed 2 | . 1 1 Parts Field Recycled 31 | . . 31 Retrieved Matter 196 | . . 196 Parts Self-Destructed . | . . . Prevented . | . . . Kills | -11 -10 -9 ------- Run | Yrd Mat Mat Combat Hostiles Destroyed 35 | 1 14 20 Melee 2 | . . 2 Guns 20 | 1 10 9 AOE 13 | . 4 9 Classes Destroyed 10 | 1 4 5 Worker 4 | . 3 1 Builder 6 | . . 6 Hauler 1 | . . 1 Recycler 2 | . 1 1 Mechanic 1 | . . 1 Watcher 7 | . 3 4 Swarmer 14 | . 8 6 Grunt 15 | 1 6 8 Duelist 1 | . . 1 Sentry 5 | . . 5 Best Kill Streak 8 | 1 6 8 Combat Bots Only 5 | 1 5 5 Max Kills in Single Turn 3 | 1 3 3 Gunslinging . | . . . Exploded 2 | . 2 2 Melee 1 | . . 1 Uniques/NPCs Destroyed . | . . . Combat | -11 -10 -9 -------- Run | Yrd Mat Mat Hostile Shots Fired 314 | 5 91 218 Missed 85 | 2 21 62 Damage Taken 2538 | 32 634 1872 Core 468 | 10 58 400 Absorbed by Shields 178 | . . 178 Regen/Repaired (Parts) 143 | . 77 66 Core Remaining (%) 84 | 96 72 . Volleys Fired 110 | 4 59 47 Largest 2 | 2 2 2 Hottest 76 | 40 60 76 Shots Fired 182 | 8 96 78 Gun 144 | 8 88 48 Cannon . | . . . Launcher 38 | . 8 30 Special . | . . . Kinetic 135 | 8 88 39 Thermal 9 | . . 9 Explosive 38 | . 8 30 Electromagnetic . | . . . Robot Hit Streak 7 | 2 6 7 Robot Miss Streak 3 | 1 3 3 Penetration Max . | . . . Secondary Targets 2 | . 1 1 Max Gunslinging Chain 1 | . 1 1 Shots Hit Robots 104 | 6 51 47 Core Hits 85 | 3 32 50 Critical Kills . | . . . Critical Parts Destroyed . | . . . Critical Strikes 1 | . . 1 Sever 1 | . . 1 Melee Attacks 12 | . 4 8 Impact . | . . . Slashing 7 | . . 7 Piercing . | . . . Sneak Attacks . | . . . Combat Hostiles . | . . . Follow-up Attacks . | . . . Damage Inflicted 2819 | 46 772 2001 Guns 828 | 46 421 361 Cannons . | . . . Explosions 1774 | . 351 1423 Melee 164 | . . 164 Ramming 53 | . . 53 Kinetic 703 | 46 421 236 Thermal 125 | . . 125 Explosive 1774 | . 351 1423 Electromagnetic . | . . . Impact . | . . . Slashing 164 | . . 164 Piercing . | . . . Highest Corruption 4 | . 1 4 Average Corruption 3 | . 1 4 Corruption Purged . | . . . Corruption Blocked . | . . . Effects 34 | . 1 33 Message Errors 7 | . . 7 Matter Fused 13 | . . 13 Heat Flow Errors 3 | . . 3 Energy Discharges 2 | . . 2 Parts Rejected 1 | . . 1 Parts Fused 1 | . . 1 Data Loss (minor) 2 | . 1 1 Data Loss (major) 2 | . . 2 Misfires 2 | . . 2 Alerts 1 | . . 1 Overload Shots . | . . . Overflow Damage 78 | . . 78 Projectiles . | . . . Explosions 78 | . . 78 Melee . | . . . Knockbacks . | . . . Impact . | . . . Kinetic . | . . . Secondary . | . . . Self-Inflicted Damage 174 | . 10 164 Shots 11 | . 1 10 Rammed 21 | . . 21 Targets Rammed 23 | . . 23 Kicked 2 | . . 2 Crushed . | . . . Highest Temperature 274 | 6 24 274 Average Temperature 54 | 6 8 67 Received Heat Transfer 657 | 18 120 519 Siege Activations . | . . . Robots Corrupted . | . . . Combat Hostiles . | . . . Parts Fried . | . . . Impact Corruptions . | . . . Robots Melted . | . . . Combat Hostiles . | . . . Parts Melted . | . . . Heat Transferred 259 | . . 259 Parts Sabotaged . | . . . Parts Stolen . | . . . Parts Stripped . | . . . Power Chain Reactions . | . . . Alert | -11 -10 -9 ------- Run | Yrd Mat Mat Peak Influence 551 | 20 369 551 Initial 42 | . 13 42 Average 278 | 4 136 371 Maximum Alert Level 2 | . 1 2 Low Security (%) 40 | 100 87 11 Level 1 17 | . 12 21 Level 2 41 | . . 66 Level 3 . | . . . Level 4 . | . . . Level 5 . | . . . High Security . | . . . Max Security . | . . . Squads Dispatched 7 | . 3 4 Investigation 3 | . 2 1 Extermination . | . . . Reinforcement 4 | . 1 3 Assault . | . . . Garrison . | . . . Intercept . | . . . Searches Triggered . | . . . Construction Impeded 1 | . . 1 Haulers Reinforced . | . . . Active Scanning Responses . | . . . Cargo Convoy Interrupts . | . . . Stealth | -11 -10 -9 --------- Run | Yrd Mat Mat Distress Signals 8 | . 4 4 Communications Jammed . | . . . Distress Signals . | . . . Times Spotted 58 | 1 23 34 Peak Tracking Total 6 | 1 6 5 Tactical Retreats 1 | . . 1 Traps | -11 -10 -9 ------- Run | Yrd Mat Mat Traps Triggered . | . . . Indirectly . | . . . Trap Hack Attempts . | . . . Triggered . | . . . Disarmed . | . . . Reprogrammed . | . . . Reused . | . . . Traps Extracted . | . . . Installed . | . . . Triggered . | . . . Machines | -11 -10 -9 ---------- Run | Yrd Mat Mat Machines Disabled 9 | . 1 8 Max in Single Turn 2 | . 1 2 Machines Repaired . | . . . Machines Dismantled . | . . . Machines Sabotaged . | . . . Overloaded Fab Kills . | . . . Hacking | -11 -10 -9 --------- Run | Yrd Mat Mat Machines Accessed 14 | . 8 6 Terminals 11 | . 7 4 Fabricators . | . . . Repair Stations 2 | . 1 1 Recycling Units . | . . . Scanalyzers 1 | . . 1 Garrison Access . | . . . Total Hacks 36 | . 16 20 Successful 27 | . 11 16 Failed 9 | . 5 4 Catastrophic . | . . . Database Lockouts . | . . . Manual . | . . . Terminals 24 | . 12 12 Fabricators . | . . . Repair Stations 6 | . 4 2 Recycling Units . | . . . Scanalyzers 6 | . . 6 Garrison Access . | . . . Terminal Hacks 17 | . 8 9 Record 6 | . 3 3 Prototype ID Bank 1 | . . 1 Emergency Access Points 1 | . 1 . Unreport Threat 1 | . 1 . Locate Traps 1 | . 1 . Dispatch Records 1 | . 1 . Maintenance Status 1 | . . 1 Surveillance Status 1 | . . 1 Transport Status 1 | . . 1 Recall Investigation 1 | . 1 . Registered Components 1 | . . 1 Zone Layout 1 | . . 1 Fabricator Hacks . | . . . Repair Station Hacks 5 | . 3 2 Scan Component 3 | . 2 1 Repair 2 | . 1 1 Recycling Unit Hacks . | . . . Scanalyzer 5 | . . 5 Insert Component 2 | . . 2 Analyze 3 | . . 3 Garrison Access Hacks . | . . . Unauthorized Hacks . | . . . Terminals . | . . . Fabricators . | . . . Repair Stations . | . . . Recycling Units . | . . . Scanalyzers . | . . . Garrison Access . | . . . Data Cores Recovered . | . . . Used . | . . . Hacking Detections 9 | . 6 3 Full Trace Events 3 | . 2 1 Feedback Events 1 | . 1 . Corruption 1 | . 1 . Feedback Blocked . | . . . Robot Schematics Acquired . | . . . Robots Built . | . . . Authchips . | . . . Time . | . . . Total Robot Build Rating . | . . . Part Schematics Acquired 2 | . . 2 Parts Built . | . . . Authchips . | . . . Time . | . . . Total Part Build Rating . | . . . Parts Repaired 2 | . 1 1 Time 77 | . 26 51 Parts Recycled . | . . . Recycled Matter . | . . . Retrieved Matter . | . . . Retrieved Components . | . . . Parts Scanalyzed 2 | . . 2 Part Schematics Acquired 2 | . . 2 Parts Damaged 1 | . . 1 Bothacking | -11 -10 -9 ------------ Run | Yrd Mat Mat Used RIF Installer . | . . . Robots Hacked 2 | . 1 1 Non-combat 1 | . 1 . Combat 1 | . . 1 Robot Hacks Applied 2 | . 1 1 parse_system 2 | . 1 1 Relay Couplers Released . | . . . Fabnet Peak Effective % . | . . . Robots Rewired . | . . . Allies Hacked . | . . . Hacks Repelled . | . . . Allies | -11 -10 -9 -------- Run | Yrd Mat Mat Total Allies . | . . . Largest Group . | . . . Highest-Rated Group . | . . . Highest-Rated Ally . | . . . Total Orders . | . . . Ally Attacks . | . . . Total Damage . | . . . Kills . | . . . Allies Corrupted . | . . . Allies Melted . | . . . Intel | -11 -10 -9 ------- Run | Yrd Mat Mat Robot Analysis Total . | . . . Derelict Logs Recovered . | . . . Drone Launches . | . . . Drone Recoveries . | . . . Exploration | -11 -10 -9 ------------- Run | Yrd Mat Mat Turns Passed 3325 | 90 1173 2062 Spaces Moved 1380 | 63 620 697 Core 23 | 18 3 2 Treads 408 | . . 408 Legs 904 | 45 572 287 Wheels . | . . . Hover . | . . . Flight 45 | . 45 . Fastest Speed 50 | 50 117 190 Average Speed 193 | 100 153 236 Slowest Speed 1000 | 120 200 1000 Overloaded Moves . | . . . Propulsion Burnouts . | . . . Robots Hopped . | . . . Cave-ins Triggered . | . . . Exploration Rate (%) 55 | 6 96 64 Regions Visited 2 Branch Regions . Pre-discovered Areas . | . . . Known Exits Taken . | . . . Unknown Exits Taken 2 | 1 1 . Scrap Searched . | . . . Spaces Dug . | . . . Terrain Destroyed 237 | . 32 205 Melee . | . . . Projectile . | . . . AOE 237 | . 32 205 Terrain Rammed . | . . . Walls Destroyed . | . . . Machines Disabled . | . . . Actions | -11 -10 -9 --------- Run | Yrd Mat Mat Total 1830 | 83 761 986 Wait 137 | . 27 110 Move 1378 | 62 619 697 Hop . | . . . Pick Up 66 | 9 26 31 Fast Attach . | . . . Attach 32 | 6 10 16 Detach 2 | . . 2 Swap 45 | 1 9 35 Drop 25 | 1 7 17 Fire 110 | 4 59 47 Melee 12 | . 4 8 Ram . | . . . Kick 2 | . . 2 Crush 21 | . . 21 Escape Stasis . | . . . Rewire . | . . . Trap . | . . . Miscellaneous . | . . . Route ------- -11/Scrapyard -10/Materials (discovered 4 exits: *Mat x3 / [*Min]) -9/Materials (discovered 3 exits: [*Mat x2] / [*Min]) History --------- Turn | Location | Event 2 | -11/Scrapyard | Met Revision 17 56 | -11/Scrapyard | Discovered new exit (range 8) 91 | -11/Scrapyard | Entered Materials 272 | -10/Materials | Repaired Aluminum Leg 324 | -10/Materials | Build established: Mutant 357 | -10/Materials | Discovered new exit (range 7) 383 | -10/Materials | Lost 5 parts (2p2n1w) 495 | -10/Materials | Discovered new exit (range 9) 653 | -10/Materials | Discovered new exit (range 10) 998 | -10/Materials | Discovered new exit (range 15) 1264 | -10/Materials | Entered another Materials area 1264 | -9/Materials | Evolved 2 slots: Utility x2 1551 | -9/Materials | Discovered new exit (range 15) 2117 | -9/Materials | Repaired Hvy. Ion Engine 2470 | -9/Materials | Discovered new exit (range 14) 2805 | -9/Materials | Core integrity fell below 50% 2889 | -9/Materials | Core integrity fell below 20% 2923 | -9/Materials | Lost 6 parts (2n2u2w) 3075 | -9/Materials | Discovered new exit (range 9) 3326 | -9/Materials | Destroyed by Y-45 Defender with Beam Rifle Last Messages --------------- Retrieving Zone 9X layout... Downloaded map data. Connecting with Terminal... System corrupted: Matter fused (-6). System corrupted: Substantial component data lost. Kicked K-01 Serf. System corrupted: Matter fused (-5). Acquired Hrd. Medium Armor Plating. Discarded ECM Suite. Acquired Hrd. Medium Armor Plating. System corrupted: Matter fused (-7). Acquired Hrd. Medium Armor Plating. Acquired Unknown Device. System corrupted: Aluminum Leg rejected. Acquired Aluminum Leg. EM Shotgun destroyed. Critical hit (Destroy). Imp. Aluminum Leg destroyed. Hrd. Medium Armor Plating destroyed. Map ----- +----------------------------------------------------+ | ?????????????????????????????????????????????????? | | ?????????????????????????????????????????????????? | | ?????????????????????????????????????????????????? | | ?????????????????????????????????????????????????? | | ?????????????????????????????????????????????????? | | ?????????????????????????????????????????????????? | | #########????????????????????????????????????????? | | #????????????????????????????????????????? | | """ #????????????????????????????????????????? | | """ #????????????????????????????????????????? | | """ #????????????????????????????????????????? | | #????????????????????????????????????????? | | """ #????????????????????????????????????????? | | """ #????????????????????????????????????????? | | """ #########????????????????????????????????? | | [ ## #????????????????????????????????? | | ########## """#????????????????????????????????? | | ?????????# """#????????????????????????????????? | | ?????????# """#??????########??????????????????? | | #######??# #??????#]] #??????????????????? | | #??# #??????#]] #??????????????????? | | #??####/###??????# #??????????????????? | | #?????# #????????## ##############???????? | | #?????# #?????????# + +??????? | | ####### ########### s # #??????? | | + @ Y/ #??????? | | #############+########### s # #??????? | | ??????###### #???????# #? #??????? | | ####??# # ""#???????# #?? #??????? | | """#??# # Y"#???????# r#??############??????? | | "T"#### # ""#???????+ #????????????????????? | | # # #???????# #????????????????????? | | # # [ #???????# #????????????????????? | | """ # # #???????# ????????????????????? | | " ! # #???????# ????????????????????? | | # #???????#s ???????????????????? | | [ ########?????# a ???????????????????? | | !*# # # ####### ???????????????????? | | ! = ! ??????????????????? | | !! | ????????????????? | | ????????????????? | | ###### ############ #???????????????? | | ! ####???# ##?????????## ##??????????????? | | #??????? #?????????" #??????????????? | | #??????? #????????#"" #??????????????? | | #???????? +????????#!! #??????????????? | | #???????? #?????????"" < #??????????????? | | #????????? #??????????| #??????????????? | | #### ##????????? #??????????" #??????????????? | | #??# #???????????#??????????? ???????????????? | +----------------------------------------------------+ Best States ------------- Heat Dissipation 35 Energy Generation 14 Energy Capacity 280 Matter Stores 300 Matter Capacity 300 Sight Range 18 Robot Scan Range 14 Terrain Scan Density 10 ECM Strength 1 Armor Coverage 225 Evasion (%) 55 Recoil Reduction 2 Item Schematics ----------------- Imp. Medium Laser | -9/Materials | Scanalyzed Field Recycling Unit | -9/Materials | Scanalyzed Robot Schematics ------------------ None Fabricated ------------ Nothing Alien Tech Used ----------------- None Achievements -------------- Everything Is Under Control Loot Pinata Maybe Next Time I'll Detach My Launcher Safety First Challenges ------------ None Game ------ Seed FocalLatentExpander Manual? 0 Play Time 00:58:00 Cumulative 5.2 hours Start 2024.04.06 @ 16:42:34 End 2024.04.06 @ 21:46:59 Sessions 3 Manual Loads 0 Difficulty Rogue Special Mode None Game No. 6 Rogue 6 Adventurer 0 Explorer 0 Win Type - Total 0 Types 0/0/0/0/0/0/0/0/0 Lore% 4 Gallery% 7 Achievement% 8 Wizard Run 0 Options --------- Layout 1 ASCII 0 Keyboard 0 Movement Mouse Keybinds 0 Fullscreen 1 Font 24/Smallcaps Map View 50x35 Zoom Use 0% Tactical HUD 0 Map Filters NONE Filters NONE Steam X RUN: a67a725a-9480-47ea-8019-34cf9913d57e